Workbook

Sheet Sheet1
D1: Solid-Vapor Equilibrium with the Peng-Robinson Equation of State | R1: =COLUMN() -> 18 | Y1: =COLUMN() -> 25
E2: Version 1.3 | I2: For Educational Use Only!
F3: Report errors to R. L. Smith; Email: smith@scf.che.tohoku.ac.jp
D5: Pure component properties | M5: Solid Properties | Q5: Binary Interaction
M6: ln(Psub [Pa] )=A-B/(t[K]+C) | Q6: Parameters
A7: No. | B7: Solvent/Co-Solvent Moles used for Mole Ratios- these do not need to sum to 100 and can be set equal to zero except for the solvent. | C7: Substance Name | D7: Formula | E7: MW | F7: Tc / K | G7: Pc/ Pa | H7: Acentric factor | I7: Role | J7: Tmelt [C] | K7: Density [kg/m3] | L7: Solid Molar Volume (cm3/mol) | M7: A | N7: B | O7: C | Q7: amix term k(i,j) | R7: j=1 | S7: 2 | T7: 3 | U7: 4 | V7: 5 | X7: bmix term l(i,j) | Y7: j=1 | Z7: 2 | AA7: 3 | AB7: 4 | AC7: 5
A8: 1 | B8: 100 | C8: Carbon Dioxide | D8: CO2 | E8: 44.01 | F8: 304.1 | G8: 7380000 | H8: 0.225 | I8: solvent | Q8: i=1 | R8: 0 | S8: 0.103 | T8: 0 | U8: 0 | V8: 0 | X8: i=1 | Y8: 0 | Z8: 0 | AA8: 0 | AB8: 0 | AC8: 0
A9: 2 | C9: Naphthalene | D9: C10H8 | E9: 128.2 | F9: 748.4 | G9: 4050000 | H9: 0.302 | I9: solid solute | J9: 80.3 | K9: =1/L9*E9*1000 -> 996.8895801 | L9: 128.6 | M9: 32.896 | N9: 9166 | O9: 0 | Q9: 2 | R9: =S8 -> 0.103 | S9: 0 | T9: 0 | U9: 0 | V9: 0 | X9: 2 | Y9: =Z8 -> 0 | Z9: 0 | AA9: 0 | AB9: 0 | AC9: 0
A10: 3 | B10: 0 | C10: Ethanol | D10: C2H6O | E10: 46.069 | F10: 516.2 | G10: 6140000 | H10: 0.635 | I10: co-solvent | Q10: 3 | R10: =T8 -> 0 | S10: =T9 -> 0 | T10: 0 | U10: 0 | V10: 0 | X10: 3 | Y10: =AA8 -> 0 | Z10: =AA9 -> 0 | AA10: 0 | AB10: 0 | AC10: 0
A11: 4 | B11: 0 | C11: Hydrogen | D11: H2 | E11: 2.016 | F11: 33.2 | G11: 1296640 | H11: -0.22 | I11: co-solvent | Q11: 4 | R11: =U8 -> 0 | S11: =U9 -> 0 | T11: =U10 -> 0 | U11: 0 | V11: 0 | X11: 4 | Y11: =AB8 -> 0 | Z11: =AB9 -> 0 | AA11: =AB10 -> 0 | AB11: 0 | AC11: 0
A12: 5 | B12: 0 | C12: n-Hexane | D12: C6H12 | E12: 86.178 | F12: 507.5 | G12: 3010000 | H12: 0.299 | I12: co-solvent | Q12: 5 | R12: =V8 -> 0 | S12: =V9 -> 0 | T12: =V10 -> 0 | U12: =V11 -> 0 | V12: 0 | X12: 5 | Y12: =AC8 -> 0 | Z12: =AC9 -> 0 | AA12: =AC10 -> 0 | AB12: =AC11 -> 0 | AC12: 0 | AE12: 0.0051
A13: Total | B13: =B8+B10+B11+B12 -> 100 | AE13: 0.4
D14: Temperature: | E14: 40 | F14: oC
D15: Calculation range | J15: Data Table for Calculations | T15: T [C] | U15: 100
D16: Pstart: | E16: 0.1 | F16: MPa | N16: Enhancement | O16: Number of | T16: P [MPa] | U16: 10
D17: Pend: | E17: 20 | F17: MPa | H17: Solid phase properties | L17: Vapor phase properties | N17: Factor | O17: Iterations | P17: Notes
D18: Pinc: | E18: 0.1 | F18: MPa | G18: P [MPa] | H18: fs [Pa] | I18: rho [kg/m3] | J18: y(2) [-] | K18: fv (2)[Pa] | L18: rho [kg/m3] | M18: y(2)ideal [-] | N18: E [-] | O18: N | S18: y1 | T18: y2 | U18: y3 | V18: y4 | W18: y5 | X18: ysum | Y18: F | Z18: ln phi | AA18: ln (y2) | AB18: Psub [Pa] | AC18: -(Poynting+ln(Psub/P))
G19: 0.1 | H19: 37.73620036 | I19: 996.8895801 | J19: 0.0003904956988 | K19: 37.73620036 | L19: 1.699680262 | M19: 0.0003755033355 | N19: 1.039926046 | O19: 2 | P19: Number of substances: 2 | S19: =$B$8/$B$13*(1-T19) -> 0.99999999 | T19: 1e-08 | U19: =$B$10/$B$13*(1-T19) -> 0 | V19: =$B$11/$B$13*(1-T19) -> 0 | W19: =$B$12/$B$13*(1-T19) -> 0 | X19: =SUM(S19:W19) -> 1 | Y19: =Z19+AA19+AC19 -> -13.28274714 | Z19: =LnPhiV_i_Tci_Pci_wi_kijm_lijm_T_P_xyi(2,$F$8:$F$12,$G$8:$G$12,$H$8:$H$12,$R$8:$V$12,$Y$8:$AC$12,$U$15,$U$16*1000000,S19:W19) -> -2.233660692 | AA19: =LN(T19) -> -18.42068074 | AB19: =EXP($M$9-$N$9/($U$15+273.15+$O$9)) -> 4155.348928 | AC19: =-($L$9/1000000*($U$16*1000000-AB19)/(8.314*(273.15+$U$15))+LN(AB19/($U$16*1000000))) -> 7.371594296
D20: Convergence Criteria: | G20: 0.2 | H20: 37.92305751 | I20: 996.8895801 | J20: 0.0002030684186 | K20: 37.92305751 | L20: 3.414356293 | M20: 0.0001877516677 | N20: 1.081579839 | O20: 2 | S20: =$B$8/$B$13*(1-T20) -> 0.99999 | T20: 1e-05 | U20: =$B$10/$B$13*(1-T20) -> 0 | V20: =$B$11/$B$13*(1-T20) -> 0 | W20: =$B$12/$B$13*(1-T20) -> 0 | X20: =SUM(S20:W20) -> 1 | Y20: =Z20+AA20+AC20 -> -6.375129225 | Z20: =LnPhiV_i_Tci_Pci_wi_kijm_lijm_T_P_xyi(2,$F$8:$F$12,$G$8:$G$12,$H$8:$H$12,$R$8:$V$12,$Y$8:$AC$12,$U$15,$U$16*1000000,S20:W20) -> -2.233798056 | AA20: -11.51292546 | AB20: 4155.348928 | AC20: =-($L$9/1000000*($U$16*1000000-AB20)/(8.314*(273.15+$U$15))+LN(AB20/($U$16*1000000))) -> 7.371594296
D21: Mole fraction, Dy/y: | E21: 0.001 | G21: 0.3 | H21: 38.11083992 | I21: 996.8895801 | J21: 0.0001408263171 | K21: 38.11083992 | L21: 5.145576577 | M21: 0.0001251677785 | N21: 1.125100395 | O21: 2 | S21: 0.9999 | T21: 0.0001 | U21: =$B$10/$B$13*(1-T21) -> 0 | V21: 0 | W21: 0 | X21: 1 | Y21: =Z21+AA21+AC21 -> -4.073781991 | Z21: -2.235035915 | AA21: -9.210340372 | AB21: 4155.348928 | AC21: 7.371594296
D22: Equilibrium function, F1: | E22: 0.01 | G22: 0.4 | H22: 38.29955217 | I22: 996.8895801 | J22: 0.0001098894038 | K22: 38.29955217 | L22: 6.893686245 | M22: 9.387583387e-05 | N22: 1.170582452 | O22: 2 | S22: 0.9998 | T22: 0.0002 | U22: 0 | V22: 0 | W22: 0 | X22: 1 | Y22: -3.382010944 | Z22: -2.236412048 | AA22: -8.517193191 | AB22: 4155.348928 | AC22: 7.371594296
G23: 0.5 | H23: 38.48919885 | I23: 996.8895801 | J23: 9.148209245e-05 | K23: 38.48919885 | L23: 8.659041908 | M23: 7.510066709e-05 | N23: 1.21812623 | O23: 2 | S23: 0.9997 | T23: 0.0003 | U23: 0 | V23: 0 | W23: 0 | X23: 1 | Y23: -2.977922744 | Z23: -2.237788957 | AA23: -8.111728083 | AB23: 4155.348928 | AC23: 7.371594296
G24: 0.6 | H24: 38.67978461 | I24: 996.8895801 | J24: 7.934622078e-05 | K24: 38.67978461 | L24: 10.44201219 | M24: 6.258388924e-05 | N24: 1.267837805 | O24: 2 | S24: 0.9996 | T24: 0.0004 | U24: 0 | V24: 0 | W24: 0 | X24: 1 | Y24: -2.691618355 | Z24: -2.239166641 | AA24: -7.824046011 | AB24: 4155.348928 | AC24: 7.371594296
G25: 0.7 | H25: 38.87131408 | I25: 996.8895801 | J25: 7.080005443e-05 | K25: 38.87131408 | L25: 12.2429783 | M25: 5.364333364e-05 | N25: 1.319829504 | O25: 2 | S25: 0.9995 | T25: 0.0005 | U25: 0 | V25: 0 | W25: 0 | X25: 1 | Y25: -2.469853267 | Z25: -2.240545103 | AA25: -7.60090246 | AB25: 4155.348928 | AC25: 7.371594296
G26: 0.8 | H26: 39.06379194 | I26: 996.8895801 | J26: 6.450303943e-05 | K26: 39.06379194 | L26: 14.06233459 | M26: 4.693791693e-05 | N26: 1.374220324 | O26: 2 | S26: 0.999443 | T26: 0.000557 | U26: 0 | V26: 0 | W26: 0 | X26: 1 | Y26: -2.362682197 | Z26: -2.241331176 | AA26: -7.492945318 | AB26: 4155.348928 | AC26: 7.371594296
G27: 0.9 | H27: 39.25722289 | I27: 996.8895801 | J27: 5.971072098e-05 | K27: 39.25722289 | L27: 15.90048923 | M27: 4.172259283e-05 | N27: 1.431136392 | O27: 2 | S27: 0.9993 | T27: 0.0007 | U27: 0 | V27: 0 | W27: 0 | X27: 1 | Y27: -2.136140295 | Z27: -2.243304368 | AA27: -7.264430223 | AB27: 4155.348928 | AC27: 7.371594296
G28: 1 | H28: 39.45161164 | I28: 996.8895801 | J28: 5.597671233e-05 | K28: 39.45161164 | L28: 17.75786485 | M28: 3.755033355e-05 | N28: 1.490711454 | O28: 2 | S28: 0.9992 | T28: 0.0008 | U28: 0 | V28: 0 | W28: 0 | X28: 1 | Y28: -2.003989708 | Z28: -2.244685174 | AA28: -7.13089883 | AB28: 4155.348928 | AC28: 7.371594296
G29: 1.1 | H29: 39.64696294 | I29: 996.8895801 | J29: 5.30172275e-05 | K29: 39.64696294 | L29: 19.63489925 | M29: 3.413666686e-05 | N29: 1.553087409 | O29: 2 | S29: 0.9991 | T29: 0.0009 | U29: 0 | V29: 0 | W29: 0 | X29: 1 | Y29: -1.887588263 | Z29: -2.246066765 | AA29: -7.013115795 | AB29: 4155.348928 | AC29: 7.371594296
G30: 1.2 | H30: 39.84328156 | I30: 996.8895801 | J30: 5.064334886e-05 | K30: 39.84328156 | L30: 21.53204616 | M30: 3.129194462e-05 | N30: 1.618414882 | O30: 2 | S30: 0.999 | T30: 0.001 | U30: 0 | V30: 0 | W30: 0 | X30: 1 | Y30: -1.783610125 | Z30: -2.247449142 | AA30: -6.907755279 | AB30: 4155.348928 | AC30: 7.371594296
G31: 1.3 | H31: 40.04057228 | I31: 996.8895801 | J31: 4.872455724e-05 | K31: 40.04057228 | L31: 23.44977603 | M31: 2.888487196e-05 | N31: 1.686853842 | O31: 2 | S31: 0.9989 | T31: 0.0011 | U31: 0 | V31: 0 | W31: 0 | X31: 1 | Y31: -1.689683109 | Z31: -2.248832307 | AA31: -6.812445099 | AB31: 4155.348928 | AC31: 7.371594296
G32: 1.4 | H32: 40.23883992 | I32: 996.8895801 | J32: 4.716789337e-05 | K32: 40.23883992 | L32: 25.38857691 | M32: 2.682166682e-05 | N32: 1.758574278 | O32: 2 | S32: 0.9988 | T32: 0.0012 | U32: 0 | V32: 0 | W32: 0 | X32: 1 | Y32: -1.604055687 | Z32: -2.250216261 | AA32: -6.725433722 | AB32: 4155.348928 | AC32: 7.371594296
G33: 1.5 | H33: 40.43808932 | I33: 996.8895801 | J33: 4.59054561e-05 | K33: 40.43808932 | L33: 27.34895532 | M33: 2.50335557e-05 | N33: 1.833756924 | O33: 2 | S33: 0.998 | T33: 0.002 | U33: 0 | V33: 0 | W33: 0 | X33: 1 | Y33: -1.104330321 | Z33: -2.261316519 | AA33: -6.214608098 | AB33: 4155.348928 | AC33: 7.371594296
G34: 1.6 | H34: 40.63832533 | I34: 996.8895801 | J34: 4.488659025e-05 | K34: 40.63832533 | L34: 29.33143727 | M34: 2.346895847e-05 | N34: 1.912594047 | O34: 2 | S34: 0.997 | T34: 0.003 | U34: 0 | V34: 0 | W34: 0 | X34: 1 | Y34: -0.7128130699 | Z34: -2.275264376 | AA34: -5.80914299 | AB34: 4155.348928 | AC34: 7.371594296
G35: 1.7 | H35: 40.83955284 | I35: 996.8895801 | J35: 4.407283317e-05 | K35: 40.83955284 | L35: 31.33656925 | M35: 2.20884315e-05 | N35: 1.995290303 | O35: 2 | S35: 0.996 | T35: 0.004 | U35: 0 | V35: 0 | W35: 0 | X35: 1 | Y35: -0.4391610676 | Z35: -2.289294446 | AA35: -5.521460918 | AB35: 4155.348928 | AC35: 7.371594296
G36: 1.8 | H36: 41.04177677 | I36: 996.8895801 | J36: 4.34345473e-05 | K36: 41.04177677 | L36: 33.36491936 | M36: 2.086129641e-05 | N36: 2.082063666 | O36: 2 | S36: 0.995 | T36: 0.005 | U36: 0 | V36: 0 | W36: 0 | X36: 1 | Y36: -0.2301315814 | Z36: -2.303408511 | AA36: -5.298317367 | AB36: 4155.348928 | AC36: 7.371594296
G37: 1.9 | H37: 41.24500204 | I37: 996.8895801 | J37: 4.294861772e-05 | K37: 41.24500204 | L37: 35.41707848 | M37: 1.976333345e-05 | N37: 2.17314644 | O37: 2 | S37: 0.994 | T37: 0.006 | U37: 0 | V37: 0 | W37: 0 | X37: 1 | Y37: -0.06200991443 | Z37: -2.317608401 | AA37: -5.11599581 | AB37: 4155.348928 | AC37: 7.371594296
G38: 2 | H38: 41.44923362 | I38: 996.8895801 | J38: 4.259684216e-05 | K38: 41.44923362 | L38: 37.49366155 | M38: 1.877516677e-05 | N38: 2.268786354 | O38: 2 | S38: 0.993931 | T38: 0.006069 | U38: 0 | V38: 0 | W38: 0 | X38: 1 | Y38: -0.05155854199 | Z38: -2.318591406 | AA38: -5.104561432 | AB38: 4155.348928 | AC38: 7.371594296
G39: 2.1 | H39: 41.65447649 | I39: 996.8895801 | J39: 4.236478271e-05 | K39: 41.65447649 | L39: 39.59530893 | M39: 1.788111121e-05 | N39: 2.369247761 | O39: 2 | S39: 0.992 | T39: 0.008 | U39: 0 | V39: 0 | W39: 0 | X39: 1 | Y39: 0.1970073297 | Z39: -2.346273229 | AA39: -4.828313737 | AB39: 4155.348928 | AC39: 7.371594296
G40: 2.2 | H40: 41.86073564 | I40: 996.8895801 | J40: 4.224093252e-05 | K40: 41.86073564 | L40: 41.72268782 | M40: 1.706833343e-05 | N40: 2.474812945 | O40: 2 | S40: 0.991 | T40: 0.009 | U40: 0 | V40: 0 | W40: 0 | X40: 1 | Y40: 0.3003215069 | Z40: -2.360742088 | AA40: -4.710530702 | AB40: 4155.348928 | AC40: 7.371594296
G41: 2.3 | H41: 42.06801613 | I41: 996.8895801 | J41: 4.221610593e-05 | K41: 42.06801613 | L41: 43.87649478 | M41: 1.632623198e-05 | N41: 2.585783786 | O41: 1 | S41: 0.99 | T41: 0.01 | U41: 0 | V41: 0 | W41: 0 | X41: 1 | Y41: 0.3911194955 | Z41: -2.375304615 | AA41: -4.605170186 | AB41: 4155.348928 | AC41: 7.371594296
G42: 2.4 | H42: 42.276323 | I42: 996.8895801 | J42: 4.228296041e-05 | K42: 42.276323 | L42: 46.05745286 | M42: 1.564597231e-05 | N42: 2.702482119 | O42: 2 | S42: 0.989 | T42: 0.011 | U42: 0 | V42: 0 | W42: 0 | X42: 1 | Y42: 0.4717713776 | Z42: -2.389962913 | AA42: -4.509860006 | AB42: 4155.348928 | AC42: 7.371594296
G43: 2.5 | H43: 42.48566134 | I43: 996.8895801 | J43: 4.243568933e-05 | K43: 42.48566134 | L43: 48.26632239 | M43: 1.502013342e-05 | N43: 2.825253821 | O43: 2 | S43: 0.98 | T43: 0.02 | U43: 0 | V43: 0 | W43: 0 | X43: 1 | Y43: 0.9329937262 | Z43: -2.526577565 | AA43: -3.912023005 | AB43: 4155.348928 | AC43: 7.371594296
G44: 2.6 | H44: 42.69603625 | I44: 996.8895801 | J44: 4.266971928e-05 | K44: 42.69603625 | L44: 50.503894 | M44: 1.444243598e-05 | N44: 2.9544683 | O44: 2 | S44: 0.9807558414 | T44: 0.01924415863 | U44: =$B$10/$B$13*(1-T44) -> 0 | V44: 0 | W44: 0 | X44: 1 | Y44: =Z44+AA44+AC44 -> 0.9062906236 | Z44: -2.514755961 | AA44: -3.950547712 | AB44: 4155.348928 | AC44: 7.371594296
G45: 2.7 | H45: 42.90745287 | I45: 996.8895801 | J45: 4.298152662e-05 | K45: 42.90745287 | L45: 52.77099515 | M45: 1.390753094e-05 | N45: 3.090521732 | O45: 2 | S45: 0.96 | T45: 0.04 | U45: 0 | V45: 0 | W45: 0 | X45: 1 | Y45: 1.283774626 | Z45: -2.868943845 | AA45: -3.218875825 | AB45: 4155.348928 | AC45: 7.371594296
G46: 2.8 | H46: 43.11991635 | I46: 996.8895801 | J46: 4.336847697e-05 | K46: 43.11991635 | L46: 55.06849153 | M46: 1.341083341e-05 | N46: 3.233839065 | O46: 2 | S46: 0.955 | T46: 0.045 | U46: 0 | V46: 0 | W46: 0 | X46: 1 | Y46: 1.304807571 | Z46: -2.965693936 | AA46: -3.101092789 | AB46: 4155.348928 | AC46: 7.371594296
G47: 2.9 | H47: 43.33343188 | I47: 996.8895801 | J47: 4.382870389e-05 | K47: 43.33343188 | L47: 57.39728948 | M47: 1.294839088e-05 | N47: 3.384876492 | O47: 2 | S47: 0.95 | T47: 0.05 | U47: 0 | V47: 0 | W47: 0 | X47: 1 | Y47: 1.307577034 | Z47: -3.068284989 | AA47: -2.995732274 | AB47: 4155.348928 | AC47: 7.371594296
G48: 3 | H48: 43.54800467 | I48: 996.8895801 | J48: 4.436101493e-05 | K48: 43.54800467 | L48: 59.75833867 | M48: 1.251677785e-05 | N48: 3.544124172 | O48: 2 | S48: 0.94 | T48: 0.06 | U48: 0 | V48: 0 | W48: 0 | X48: 1 | Y48: 1.263261965 | Z48: -3.294921615 | AA48: -2.813410717 | AB48: 4155.348928 | AC48: 7.371594296
G49: 3.1 | H49: 43.76363995 | I49: 996.8895801 | J49: 4.496481924e-05 | K49: 43.76363995 | L49: 62.15263494 | M49: 1.211301082e-05 | N49: 3.712109227 | O49: 2 | S49: 0.93 | T49: 0.07 | U49: 0 | V49: 0 | W49: 0 | X49: 1 | Y49: 1.153624861 | Z49: -3.558709398 | AA49: -2.659260037 | AB49: 4155.348928 | AC49: 7.371594296
G50: 3.2 | H50: 43.98034299 | I50: 996.8895801 | J50: 4.564007244e-05 | K50: 43.98034299 | L50: 64.58122347 | M50: 1.173447923e-05 | N50: 3.889399055 | O50: 2 | S50: 0.915 | T50: 0.085 | U50: 0 | V50: 0 | W50: 0 | X50: 1 | Y50: 0.8555851252 | Z50: -4.050905149 | AA50: -2.465104022 | AB50: 4155.348928 | AC50: 7.371594296
G51: 3.3 | H51: 44.19811907 | I51: 996.8895801 | J51: 4.638723546e-05 | K51: 44.19811907 | L51: 67.04520208 | M51: 1.137888895e-05 | N51: 4.076604987 | O51: 2 | S51: 0.91 | T51: 0.09 | U51: 0 | V51: 0 | W51: 0 | X51: 1 | Y51: 0.7199582717 | Z51: -4.243690416 | AA51: =LN(T51) -> -2.407945609 | AB51: =EXP($M$9-$N$9/($U$15+273.15+$O$9)) -> 4155.348928 | AC51: 7.371594296
G52: 3.4 | H52: 44.4169735 | I52: 996.8895801 | J52: 4.720724502e-05 | K52: 44.4169735 | L52: 69.54572501 | M52: 1.104421575e-05 | N52: 4.274386348 | O52: 2 | S52: 0.905 | T52: 0.095 | U52: 0 | V52: 0 | W52: 0 | X52: 1 | Y52: 0.5709043737 | Z52: -4.446811535 | AA52: -2.353878387 | AB52: 4155.348928 | AC52: 7.371594296
G53: 3.5 | H53: 44.63691163 | I53: 996.8895801 | J53: 4.81014939e-05 | K53: 44.63691163 | L53: 72.08400688 | M53: 1.072866673e-05 | N53: 4.483454946 | O53: 2 | S53: 0.9 | T53: 0.1 | U53: 0 | V53: 0 | W53: 0 | X53: 1 | Y53: 0.4157976439 | Z53: -4.653211559 | AA53: -2.302585093 | AB53: 4155.348928 | AC53: 7.371594296
G54: 3.6 | H54: 44.85793882 | I54: 996.8895801 | J54: 4.907181972e-05 | K54: 44.85793882 | L54: 74.66132711 | M54: 1.043064821e-05 | N54: 4.704580075 | O54: 2 | S54: 0.895 | T54: 0.105 | U54: 0 | V54: 0 | W54: 0 | X54: 1 | Y54: 0.2634697572 | Z54: -4.85432961 | AA54: -2.253794929 | AB54: 4155.348928 | AC54: 7.371594296
G55: 3.7 | H55: 45.08006046 | I55: 996.8895801 | J55: 5.012050126e-05 | K55: 45.08006046 | L55: 77.27903469 | M55: 1.01487388e-05 | N55: 4.938594073 | O55: 2 | S55: 0.89 | T55: 0.11 | U55: 0 | V55: 0 | W55: 0 | X55: 1 | Y55: 0.1211396327 | Z55: -5.04317975 | AA55: -2.207274913 | AB55: 4155.348928 | AC55: 7.371594296
G56: 3.8 | H56: 45.30328198 | I56: 996.8895801 | J56: 5.125026165e-05 | K56: 45.30328198 | L56: 79.93855345 | M56: 9.881666723e-06 | N56: 5.186398519 | O56: 2 | S56: 0.885 | T56: 0.115 | U56: 0 | V56: 0 | W56: 0 | X56: 1 | Y56: -0.007361380842 | Z56: -5.216132527 | AA56: -2.162823151 | AB56: 4155.348928 | AC56: 7.371594296
G57: 3.9 | H57: 45.52760881 | I57: 996.8895801 | J57: 5.246427807e-05 | K57: 45.52760881 | L57: 82.64138782 | M57: 9.628290653e-06 | N57: 5.448971158 | O57: 2 | S57: 0.88 | T57: 0.12 | U57: 0 | V57: 0 | W57: 0 | X57: 1 | Y57: -0.1212095941 | Z57: -5.372540354 | AA57: -2.120263536 | AB57: 4155.348928 | AC57: 7.371594296
G58: 4 | H58: 45.75304644 | I58: 996.8895801 | J58: 5.376619764e-05 | K58: 45.75304644 | L58: 85.3891291 | M58: 9.387583387e-06 | N58: 5.727373641 | O58: 2 | S58: 0.8 | T58: 0.2 | U58: 0 | V58: 0 | W58: 0 | X58: 1 | Y58: -0.896516239 | Z58: -6.658672623 | AA58: -1.609437912 | AB58: 4155.348928 | AC58: 7.371594296
G59: 4.1 | H59: 45.97960035 | I59: 996.8895801 | J59: 5.516015954e-05 | K59: 45.97960035 | L59: 88.18346239 | M59: 9.158617938e-06 | N59: 6.022760193 | O59: 2 | S59: 0.78 | T59: 0.22 | U59: 0 | V59: 0 | W59: 0 | X59: 1 | Y59: -0.9637114267 | Z59: -6.82117799 | AA59: -1.514127733 | AB59: 4155.348928 | AC59: 7.371594296
G60: 4.2 | H60: 46.20727609 | I60: 996.8895801 | J60: 5.665082324e-05 | K60: 46.20727609 | L60: 91.02617405 | M60: 8.940555606e-06 | N60: 6.336387327 | O60: 2 | S60: 0.76 | T60: 0.24 | U60: 0 | V60: 0 | W60: 0 | X60: 1 | Y60: =Z60+AA60+AC60 -> -1.011016562 | Z60: -6.955494503 | AA60: -1.427116356 | AB60: 4155.348928 | AC60: 7.371594296
G61: 4.3 | H61: 46.43607921 | I61: 996.8895801 | J61: 5.824341766e-05 | K61: 46.43607921 | L61: 93.91916681 | M61: 8.732635708e-06 | N61: 6.669626399 | O61: 2 | S61: 0.74 | T61: 0.26 | U61: 0 | V61: 0 | W61: 0 | X61: 1 | Y61: -1.043683238 | Z61: -7.068203887 | AA61: -1.347073648 | AB61: 4155.348928 | AC61: 7.371594296
G62: 4.4 | H62: 46.66601528 | I62: 996.8895801 | J62: 5.994374447e-05 | K62: 46.66601528 | L62: 96.8644503 | M62: 8.534166715e-06 | N62: 7.02397158 | O62: 2 | S62: 0.72 | T62: 0.28 | U62: 0 | V62: 0 | W62: 0 | X62: 1 | Y62: -1.065231496 | Z62: -7.163860116 | AA62: -1.272965676 | AB62: 4155.348928 | AC62: 7.371594296
G63: 4.5 | H63: 46.89708991 | I63: 996.8895801 | J63: 6.175827601e-05 | K63: 46.89708991 | L63: 99.86417421 | M63: 8.344518566e-06 | N63: 7.401059213 | O63: 2 | S63: 0.7 | T63: 0.3 | U63: 0 | V63: 0 | W63: 0 | X63: 1 | Y63: -1.078138995 | Z63: -7.245760487 | AA63: -1.203972804 | AB63: 4155.348928 | AC63: 7.371594296
G64: 4.6 | H64: 47.12930876 | I64: 996.8895801 | J64: 6.369418833e-05 | K64: 47.12930876 | L64: 102.9206273 | M64: 8.163115988e-06 | N64: 7.802680792 | O64: 2 | S64: 0.68 | T64: 0.32 | U64: 0 | V64: 0 | W64: 0 | X64: 1 | Y64: -1.084216003 | Z64: -7.316376016 | AA64: -1.139434283 | AB64: 4155.348928 | AC64: 7.371594296
G65: 4.7 | H65: 47.36267747 | I65: 996.8895801 | J65: 6.57594362e-05 | K65: 47.36267747 | L65: 106.0362532 | M65: 7.989432669e-06 | N65: 8.230801725 | O65: 2 | S65: 0.66 | T65: 0.34 | U65: 0 | V65: 0 | W65: 0 | X65: 1 | Y65: -1.084824519 | Z65: -7.377609154 | AA65: -1.078809661 | AB65: 4155.348928 | AC65: 7.371594296
G66: 4.8 | H66: 47.59720175 | I66: 996.8895801 | J66: 6.796283368e-05 | K66: 47.59720175 | L66: 109.2136649 | M66: 7.822986155e-06 | N66: 8.687581996 | O66: 2 | S66: 0.64 | T66: 0.36 | U66: 0 | V66: 0 | W66: 0 | X66: 1 | Y66: -1.081013369 | Z66: -7.430956418 | AA66: -1.021651248 | AB66: 4155.348928 | AC66: 7.371594296
G67: 4.9 | H67: 47.83288731 | I67: 996.8895801 | J67: 7.031414755e-05 | K67: 47.83288731 | L67: 112.4556613 | M67: 7.663333377e-06 | N67: 9.175399802 | O67: 2 | S67: 0.62 | T67: 0.38 | U67: 0 | V67: 0 | W67: 0 | X67: 1 | Y67: -1.073605401 | Z67: -7.477615671 | AA67: -0.9675840263 | AB67: 4155.348928 | AC67: 7.371594296
G68: 5 | H68: 48.06973991 | I68: 996.8895801 | J68: 7.282420558e-05 | K68: 48.06973991 | L68: 115.7652455 | M68: 7.510066709e-06 | N68: 9.696878656 | O68: 2 | S68: 0.5056409828 | T68: 0.4943590172 | U68: 0 | V68: 0 | W68: 0 | X68: 1 | Y68: -0.9882651554 | Z68: -7.655366181 | AA68: -0.7044932703 | AB68: 4155.348928 | AC68: 7.371594296
G69: 5.1 | H69: 48.30776533 | I69: 996.8895801 | J69: 7.550502214e-05 | K69: 48.30776533 | L69: 119.1456456 | M69: 7.362810499e-06 | N69: 10.25491857 | O69: 2 | S69: 0.503621331 | T69: 0.496378669 | U69: 0 | V69: 0 | W69: 0 | X69: 1 | Y69: -0.9863397433 | Z69: -7.657517842 | AA69: -0.7004161979 | AB69: 4155.348928 | AC69: 7.371594296
G70: 5.2 | H70: 48.54696937 | I70: 996.8895801 | J70: 7.836994406e-05 | K70: 48.54696937 | L70: 122.6003382 | M70: 7.22121799e-06 | N70: 10.85273207 | O70: 2 | S70: 0.5 | T70: 0.5 | U70: 0 | V70: 0 | W70: 0 | X70: 1 | Y70: -0.9828640295 | Z70: -7.661311145 | AA70: -0.6931471806 | AB70: 4155.348928 | AC70: 7.371594296
G71: 5.3 | H71: 48.78735787 | I71: 996.8895801 | J71: 8.143382034e-05 | K71: 48.78735787 | L71: 126.1330749 | M71: 7.084968594e-06 | N71: 11.49388586 | O71: 2 | S71: 0.45 | T71: 0.55 | U71: 0 | V71: 0 | W71: 0 | X71: 1 | Y71: -0.9323406757 | Z71: -7.706097971 | AA71: -0.5978370008 | AB71: 4155.348928 | AC71: 7.371594296
G72: 5.4 | H72: 49.02893669 | I72: 996.8895801 | J72: 8.471320012e-05 | K72: 49.02893669 | L72: 129.747913 | M72: 6.953765472e-06 | N72: 12.18234933 | O72: 2 | S72: 0.4 | T72: 0.6 | U72: 0 | V72: 0 | W72: 0 | X72: 1 | Y72: -0.8785827179 | Z72: -7.73935139 | AA72: -0.5108256238 | AB72: 4155.348928 | AC72: 7.371594296
G73: 5.5 | H73: 49.27171173 | I73: 996.8895801 | J73: 8.822656439e-05 | K73: 49.27171173 | L73: 133.4492502 | M73: 6.827333372e-06 | N73: 12.9225511 | O73: 2 | S73: 0.35 | T73: 0.65 | U73: 0 | V73: 0 | W73: 0 | X73: 1 | Y73: -0.8231761985 | Z73: -7.763987579 | AA73: -0.4307829161 | AB73: 4155.348928 | AC73: 7.371594296
G74: 5.6 | H74: 49.51568891 | I74: 996.8895801 | J74: 9.199459791e-05 | K74: 49.51568891 | L74: 137.2418641 | M74: 6.705416705e-06 | N74: 13.71944533 | O74: 2 | S74: 0.3 | T74: 0.7 | U74: 0 | V74: 0 | W74: 0 | X74: 1 | Y74: -0.7671800817 | Z74: -7.782099434 | AA74: -0.3566749439 | AB74: 4155.348928 | AC74: 7.371594296
G75: 5.7 | H75: 49.76087419 | I75: 996.8895801 | J75: 9.604050982e-05 | K75: 49.76087419 | L75: 141.1309584 | M75: 6.587777815e-06 | N75: 14.5785897 | O75: 2 | S75: 0.25 | T75: 0.75 | U75: 0 | V75: 0 | W75: 0 | X75: 1 | Y75: -0.7113053651 | Z75: -7.795217589 | AA75: -0.2876820725 | AB75: 4155.348928 | AC75: 7.371594296
G76: 5.8 | H76: 50.00727354 | I76: 996.8895801 | J76: 0.0001003904129 | K76: 50.00727354 | L76: 145.122216 | M76: 6.474195439e-06 | N76: 15.50623762 | O76: 2 | S76: 0.2 | T76: 0.8 | U76: 0 | V76: 0 | W76: 0 | X76: 1 | Y76: -0.6560286718 | Z76: -7.804479417 | AA76: -0.2231435513 | AB76: 4155.348928 | AC76: 7.371594296
G77: 5.9 | H77: 50.25489298 | I77: 996.8895801 | J77: 0.0001050737745 | K77: 50.25489298 | L77: 149.2218605 | M77: 6.364463313e-06 | N77: 16.50944775 | O77: 2 | S77: 0.15 | T77: 0.85 | U77: 0 | V77: 0 | W77: 0 | X77: 1 | Y77: -0.6016662728 | Z77: -7.81074164 | AA77: -0.1625189295 | AB77: 4155.348928 | AC77: 7.371594296
G78: 6 | H78: 50.50373856 | I78: 996.8895801 | J78: 0.0001101239553 | K78: 50.50373856 | L78: 153.436728 | M78: 6.258388924e-06 | N78: 17.59621472 | O78: 2 | S78: 0.1 | T78: 0.9 | U78: 0 | V78: 0 | W78: 0 | X78: 1 | Y78: -0.5484234402 | Z78: -7.814657221 | AA78: -0.1053605157 | AB78: 4155.348928 | AC78: 7.371594296
G79: 6.1 | H79: 50.75381633 | I79: 996.8895801 | J79: 0.000115578856 | K79: 50.75381633 | L79: 157.7743515 | M79: 6.155792385e-06 | N79: 18.77562607 | O79: 2 | S79: 0.05 | T79: 0.95 | U79: 0 | V79: 0 | W79: 0 | X79: 1 | Y79: -0.4964279673 | Z79: -7.816728969 | AA79: -0.05129329439 | AB79: 4155.348928 | AC79: 7.371594296
G80: 6.2 | H80: 51.0051324 | I80: 996.8895801 | J80: 0.0001214816976 | K80: 51.0051324 | L80: 162.2430601 | M80: 6.056505411e-06 | N80: 20.05805153 | O80: 2 | S80: 0.04 | T80: 0.96 | U80: 0 | V80: 0 | W80: 0 | X80: 1 | Y80: -0.4861857743 | Z80: -7.816958076 | AA80: -0.04082199452 | AB80: 4155.348928 | AC80: 7.371594296
G81: 6.3 | H81: 51.25769291 | I81: 996.8895801 | J81: 0.0001278819693 | K81: 51.25769291 | L81: 166.8520954 | M81: 5.960370404e-06 | N81: 21.45537283 | O81: 2 | S81: 0.03 | T81: 0.97 | U81: 0 | V81: 0 | W81: 0 | X81: 1 | Y81: -0.475996912 | Z81: -7.817132001 | AA81: -0.03045920748 | AB81: 4155.348928 | AC81: 7.371594296
G82: 6.4 | H82: 51.51150401 | I82: 996.8895801 | J82: 0.0001348365841 | K82: 51.51150401 | L82: 171.6117508 | M82: 5.867239617e-06 | N82: 22.98126427 | O82: 2 | S82: 0.02 | T82: 0.98 | U82: 0 | V82: 0 | W82: 0 | X82: 1 | Y82: -0.4658617036 | Z82: -7.817253293 | AA82: -0.02020270732 | AB82: 4155.348928 | AC82: 7.371594296
G83: 6.5 | H83: 51.7665719 | I83: 996.8895801 | J83: 0.0001424115024 | K83: 51.7665719 | L83: 176.5336122 | M83: 5.776974392e-06 | N83: 24.6515724 | O83: 2 | S83: 0.01 | T83: 0.99 | U83: 0 | V83: 0 | W83: 0 | X83: 1 | Y83: -0.4557804201 | Z83: -7.817324381 | AA83: -0.01005033585 | AB83: 4155.348928 | AC83: 7.371594296
G84: 6.6 | H84: 52.0229028 | I84: 996.8895801 | J84: 0.000150682949 | K84: 52.0229028 | L84: 181.6305482 | M84: 5.689444477e-06 | N84: 26.48465059 | O84: 2 | S84: =$B$8/$B$13*(1-T84) -> 0.001 | T84: 0.999 | U84: =$B$10/$B$13*(1-T84) -> 0 | V84: =$B$11/$B$13*(1-T84) -> 0 | W84: =$B$12/$B$13*(1-T84) -> 0 | X84: =SUM(S84:W84) -> 1 | Y84: =Z84+AA84+AC84 -> -0.4467535554 | Z84: =LnPhiV_i_Tci_Pci_wi_kijm_lijm_T_P_xyi(2,$F$8:$F$12,$G$8:$G$12,$H$8:$H$12,$R$8:$V$12,$Y$8:$AC$12,$U$15,$U$16*1000000,S84:W84) -> -7.817347351 | AA84: -0.001000500334 | AB84: 4155.348928 | AC84: =-($L$9/1000000*($U$16*1000000-AB84)/(8.314*(273.15+$U$15))+LN(AB84/($U$16*1000000))) -> 7.371594296
G85: 6.7 | H85: 52.28050297 | I85: 996.8895801 | J85: 0.0001597403138 | K85: 52.28050297 | L85: 186.9172174 | M85: 5.604527395e-06 | N85: 28.50201321 | O85: 2
G86: 6.8 | H86: 52.53937869 | I86: 996.8895801 | J86: 0.0001696885788 | K86: 52.53937869 | L86: 192.4102265 | M86: 5.522107874e-06 | N86: 30.72895038 | O86: 2
G87: 6.9 | H87: 52.79953628 | I87: 996.8895801 | J87: 0.0001806519791 | K87: 52.79953628 | L87: 198.128537 | M87: 5.442077326e-06 | N87: 33.19540836 | O87: 2
G88: 7 | H88: 53.06098208 | I88: 996.8895801 | J88: 0.0001927786104 | K88: 53.06098208 | L88: 204.0939337 | M88: 5.364333364e-06 | N88: 35.93710482 | O88: 2
G89: 7.1 | H89: 53.32372247 | I89: 996.8895801 | J89: 0.000206246428 | K89: 53.32372247 | L89: 210.3316138 | M89: 5.288779373e-06 | N89: 38.99698086 | O89: 2
G90: 7.2 | H90: 53.58776387 | I90: 996.8895801 | J90: 0.0002212711527 | K90: 53.58776387 | L90: 216.8709351 | M90: 5.215324104e-06 | N90: 42.42711445 | O90: 2
G91: 7.3 | H91: 53.85311271 | I91: 996.8895801 | J91: 0.0002381168241 | K91: 53.85311271 | L91: 223.7463764 | M91: 5.143881308e-06 | N91: 46.29127498 | O91: 2
G92: 7.4 | H92: 54.11977547 | I92: 996.8895801 | J92: 0.0002571100913 | K92: 54.11977547 | L92: 230.9987844 | M92: 5.074369398e-06 | N92: 50.66838284 | O92: 2
G93: 7.5 | H93: 54.38775866 | I93: 996.8895801 | J93: 0.0002786598593 | K93: 54.38775866 | L93: 238.6770088 | M93: 5.00671114e-06 | N93: 55.65726713 | O93: 2
G94: 7.6 | H94: 54.65706881 | I94: 996.8895801 | J94: 0.0003032897786 | K94: 54.65706881 | L94: 246.8411775 | M94: 4.940833361e-06 | N94: 61.38433669 | O94: 3
G95: 7.7 | H95: 54.9277125 | I95: 996.8895801 | J95: 0.000331660246 | K95: 54.9277125 | L95: 255.5617741 | M95: 4.876666694e-06 | N95: 68.00961943 | O95: 3
G96: 7.8 | H96: 55.19969632 | I96: 996.8895801 | J96: 0.0003646481804 | K96: 55.19969632 | L96: 264.9288108 | M96: 4.814145326e-06 | N96: 75.74515427 | O96: 3
G97: 7.9 | H97: 55.47302692 | I97: 996.8895801 | J97: 0.0004034169763 | K97: 55.47302692 | L97: 275.0540363 | M97: 4.753206778e-06 | N97: 84.8725913 | O97: 3
G98: 8 | H98: 55.74771096 | I98: 996.8895801 | J98: 0.000449545753 | K98: 55.74771096 | L98: 286.0789665 | M98: 4.693791693e-06 | N98: 95.77454272 | O98: 3
G99: 8.1 | H99: 56.02375514 | I99: 996.8895801 | J99: 0.0005052249758 | K99: 56.02375514 | L99: 298.1851701 | M99: 4.635843648e-06 | N99: 108.9823157 | O99: 3
G100: 8.2 | H100: 56.3011662 | I100: 996.8895801 | J100: 0.0005735435924 | K100: 56.3011662 | L100: 311.6048638 | M100: 4.579308969e-06 | N100: 125.2467558 | O100: 3
G101: 8.3 | H101: 56.57995091 | I101: 996.8895801 | J101: 0.0006589366579 | K101: 56.57995091 | L101: 326.6341378 | M101: 4.524136572e-06 | N101: 145.6491526 | O101: 3
G102: 8.4 | H102: 56.86011607 | I102: 996.8895801 | J102: 0.0007677714599 | K102: 56.86011607 | L102: 343.6323076 | M102: 4.470277803e-06 | N102: 171.750279 | O102: 3
G103: 8.5 | H103: 57.14166852 | I103: 996.8895801 | J103: 0.0009090417658 | K103: 57.14166852 | L103: 362.9946233 | M103: 4.4176863e-06 | N103: 205.7732723 | O103: 4
G104: 8.6 | H104: 57.42461512 | I104: 996.8895801 | J104: 0.001093470933 | K104: 57.42461512 | L104: 384.9306516 | M104: 4.366317854e-06 | N104: 250.4331955 | O104: 4
G105: 8.7 | H105: 57.70896278 | I105: 996.8895801 | J105: 0.001329961061 | K105: 57.70896278 | L105: 409.1227631 | M105: 4.316130293e-06 | N105: 308.1373755 | O105: 4
G106: 8.8 | H106: 57.99471843 | I106: 996.8895801 | J106: 0.001617147361 | K106: 57.99471843 | L106: 434.3303942 | M106: 4.267083358e-06 | N106: 378.9819007 | O106: 5
G107: 8.9 | H107: 58.28188905 | I107: 996.8895801 | J107: 0.001936992244 | K107: 58.28188905 | L107: 458.620538 | M107: 4.219138601e-06 | N107: 459.0966137 | O107: 5
G108: 9 | H108: 58.57048164 | I108: 996.8895801 | J108: 0.002266812966 | K108: 58.57048164 | L108: 480.6484393 | M108: 4.172259283e-06 | N108: 543.3058715 | O108: 5
G109: 9.1 | H109: 58.86050325 | I109: 996.8895801 | J109: 0.002590542011 | K109: 58.86050325 | L109: 500.029043 | M109: 4.12641028e-06 | N109: 627.7955499 | O109: 5
G110: 9.2 | H110: 59.15196095 | I110: 996.8895801 | J110: 0.002900919841 | K110: 59.15196095 | L110: 516.9780741 | M110: 4.081557994e-06 | N110: 710.7383615 | O110: 5
G111: 9.3 | H111: 59.44486185 | I111: 996.8895801 | J111: 0.003196020131 | K111: 59.44486185 | L111: 531.8886542 | M111: 4.037670274e-06 | N111: 791.5505513 | O111: 5
G112: 9.4 | H112: 59.7392131 | I112: 996.8895801 | J112: 0.003476262391 | K112: 59.7392131 | L112: 545.1384955 | M112: 3.994716335e-06 | N112: 870.2150789 | O112: 5
G113: 9.5 | H113: 60.03502188 | I113: 996.8895801 | J113: 0.003742880917 | K113: 60.03502188 | L113: 557.0384116 | M113: 3.952666689e-06 | N113: 946.9255091 | O113: 5
G114: 9.6 | H114: 60.33229541 | I114: 996.8895801 | J114: 0.003996227077 | K114: 60.33229541 | L114: 567.7989647 | M114: 3.911493078e-06 | N114: 1021.662827 | O114: 4
G115: 9.7 | H115: 60.63104093 | I115: 996.8895801 | J115: 0.004239805419 | K115: 60.63104093 | L115: 577.6796756 | M115: 3.871168407e-06 | N115: 1095.226292 | O115: 4
G116: 9.8 | H116: 60.93126575 | I116: 996.8895801 | J116: 0.004473646885 | K116: 60.93126575 | L116: 586.7888036 | M116: 3.831666688e-06 | N116: 1167.54594 | O116: 4
G117: 9.9 | H117: 61.23297718 | I117: 996.8895801 | J117: 0.00469878431 | K117: 61.23297718 | L117: 595.2425782 | M117: 3.792962984e-06 | N117: 1238.816284 | O117: 4
G118: 10 | H118: 61.53618258 | I118: 996.8895801 | J118: 0.004916101451 | K118: 61.53618258 | L118: 603.1333729 | M118: 3.755033355e-06 | N118: 1309.203138 | O118: 4
G119: 10.1 | H119: 61.84088936 | I119: 996.8895801 | J119: 0.005126352061 | K119: 61.84088936 | L119: 610.5355126 | M119: 3.717854807e-06 | N119: 1378.846762 | O119: 4
G120: 10.2 | H120: 62.14710494 | I120: 996.8895801 | J120: 0.005330182045 | K120: 62.14710494 | L120: 617.5095804 | M120: 3.68140525e-06 | N120: 1447.86615 | O120: 4
G121: 10.3 | H121: 62.4548368 | I121: 996.8895801 | J121: 0.005528147984 | K121: 62.4548368 | L121: 624.1055473 | M121: 3.645663451e-06 | N121: 1516.362675 | O121: 4
G122: 10.4 | H122: 62.76409245 | I122: 996.8895801 | J122: 0.005720732321 | K122: 62.76409245 | L122: 630.3650795 | M122: 3.610608995e-06 | N122: 1584.423107 | O122: 4
G123: 10.5 | H123: 63.07487943 | I123: 996.8895801 | J123: 0.005908355704 | K123: 63.07487943 | L123: 636.3232621 | M123: 3.576222243e-06 | N123: 1652.122073 | O123: 4
G124: 10.6 | H124: 63.38720532 | I124: 996.8895801 | J124: 0.006091387009 | K124: 63.38720532 | L124: 642.0099052 | M124: 3.542484297e-06 | N124: 1719.524068 | O124: 4
G125: 10.7 | H125: 63.70107775 | I125: 996.8895801 | J125: 0.006270061765 | K125: 63.70107775 | L125: 647.4483738 | M125: 3.509376967e-06 | N125: 1786.659519 | O125: 4
G126: 10.8 | H126: 64.01650437 | I126: 996.8895801 | J126: 0.006444829307 | K126: 64.01650437 | L126: 652.6646733 | M126: 3.476882736e-06 | N126: 1853.622856 | O126: 4
G127: 10.9 | H127: 64.33349288 | I127: 996.8895801 | J127: 0.006615875302 | K127: 64.33349288 | L127: 657.6761784 | M127: 3.444984729e-06 | N127: 1920.436757 | O127: 4
G128: 11 | H128: 64.65205101 | I128: 996.8895801 | J128: 0.006783429357 | K128: 64.65205101 | L128: 662.499632 | M128: 3.413666686e-06 | N128: 1987.138752 | O128: 4
G129: 11.1 | H129: 64.97218653 | I129: 996.8895801 | J129: 0.006947698158 | K129: 64.97218653 | L129: 667.1497658 | M129: 3.382912932e-06 | N129: 2053.762038 | O129: 4
G130: 11.2 | H130: 65.29390726 | I130: 996.8895801 | J130: 0.007108868216 | K130: 65.29390726 | L130: 671.6396058 | M130: 3.352708352e-06 | N130: 2120.336 | O130: 4
G131: 11.3 | H131: 65.61722105 | I131: 996.8895801 | J131: 0.007267108488 | K131: 65.61722105 | L131: 675.9807269 | M131: 3.323038367e-06 | N131: 2186.886724 | O131: 4
G132: 11.4 | H132: 65.94213577 | I132: 996.8895801 | J132: 0.007422572585 | K132: 65.94213577 | L132: 680.1834622 | M132: 3.293888908e-06 | N132: 2253.437439 | O132: 4
G133: 11.5 | H133: 66.26865937 | I133: 996.8895801 | J133: 0.007575400643 | K133: 66.26865937 | L133: 684.2570757 | M133: 3.265246395e-06 | N133: 2320.008883 | O133: 4
G134: 11.6 | H134: 66.5967998 | I134: 996.8895801 | J134: 0.007725720912 | K134: 66.5967998 | L134: 688.2099056 | M134: 3.23709772e-06 | N134: 2386.619615 | O134: 4
G135: 11.7 | H135: 66.92656508 | I135: 996.8895801 | J135: 0.00787365112 | K135: 66.92656508 | L135: 692.0494851 | M135: 3.209430218e-06 | N135: 2453.28628 | O135: 4
G136: 11.8 | H136: 67.25796324 | I136: 996.8895801 | J136: 0.008019299644 | K136: 67.25796324 | L136: 695.7826433 | M136: 3.182231656e-06 | N136: 2520.023842 | O136: 4
G137: 11.9 | H137: 67.59100238 | I137: 996.8895801 | J137: 0.008160515165 | K137: 67.59100238 | L137: 699.3891922 | M137: 3.155490214e-06 | N137: 2586.1323 | O137: 3
G138: 12 | H138: 67.92569061 | I138: 996.8895801 | J138: 0.008301860782 | K138: 67.92569061 | L138: 702.9280193 | M138: 3.129194462e-06 | N138: 2653.034473 | O138: 3
G139: 12.1 | H139: 68.26203612 | I139: 996.8895801 | J139: 0.008441249861 | K139: 68.26203612 | L139: 706.3779887 | M139: 3.103333351e-06 | N139: 2720.059016 | O139: 3
G140: 12.2 | H140: 68.60004709 | I140: 996.8895801 | J140: 0.008578715446 | K140: 68.60004709 | L140: 709.7433109 | M140: 3.077896192e-06 | N140: 2787.201033 | O140: 3
G141: 12.3 | H141: 68.93973178 | I141: 996.8895801 | J141: 0.008714330969 | K141: 68.93973178 | L141: 713.0283535 | M141: 3.052872646e-06 | N141: 2854.46921 | O141: 3
G142: 12.4 | H142: 69.28109848 | I142: 996.8895801 | J142: 0.008848165905 | K142: 69.28109848 | L142: 716.237153 | M142: 3.028252705e-06 | N142: 2921.871708 | O142: 3
G143: 12.5 | H143: 69.62415551 | I143: 996.8895801 | J143: 0.008980285246 | K143: 69.62415551 | L143: 719.3734392 | M143: 3.004026684e-06 | N143: 2989.415938 | O143: 3
G144: 12.6 | H144: 69.96891125 | I144: 996.8895801 | J144: 0.009110749889 | K144: 69.96891125 | L144: 722.4406661 | M144: 2.980185202e-06 | N144: 3057.108626 | O144: 3
G145: 12.7 | H145: 70.3153741 | I145: 996.8895801 | J145: 0.009239508191 | K145: 70.3153741 | L145: 725.4402449 | M145: 2.956719177e-06 | N145: 3124.919087 | O145: 3
G146: 12.8 | H146: 70.66355252 | I146: 996.8895801 | J146: 0.009366840592 | K146: 70.66355252 | L146: 728.3789331 | M146: 2.933619808e-06 | N146: 3192.929283 | O146: 3
G147: 12.9 | H147: 71.01345501 | I147: 996.8895801 | J147: 0.009492681107 | K147: 71.01345501 | L147: 731.2575169 | M147: 2.910878569e-06 | N147: 3261.105154 | O147: 3
G148: 13 | H148: 71.3650901 | I148: 996.8895801 | J148: 0.009617074926 | K148: 71.3650901 | L148: 734.078564 | M148: 2.888487196e-06 | N148: 3329.450426 | O148: 3
G149: 13.1 | H149: 71.71846637 | I149: 996.8895801 | J149: 0.00974006719 | K149: 71.71846637 | L149: 736.8444966 | M149: 2.866437675e-06 | N149: 3397.969289 | O149: 3
G150: 13.2 | H150: 72.07359244 | I150: 996.8895801 | J150: 0.009861700634 | K150: 72.07359244 | L150: 739.557582 | M150: 2.844722238e-06 | N150: 3466.665568 | O150: 3
G151: 13.3 | H151: 72.43047697 | I151: 996.8895801 | J151: 0.009982015707 | K151: 72.43047697 | L151: 742.2199458 | M151: 2.823333349e-06 | N151: 3535.542733 | O151: 3
G152: 13.4 | H152: 72.78912869 | I152: 996.8895801 | J152: 0.01010105075 | K152: 72.78912869 | L152: 744.8335832 | M152: 2.802263697e-06 | N152: 3604.603935 | O152: 3
G153: 13.5 | H153: 73.14955632 | I153: 996.8895801 | J153: 0.01021884215 | K153: 73.14955632 | L153: 747.4003696 | M153: 2.781506189e-06 | N153: 3673.852026 | O153: 3
G154: 13.6 | H154: 73.51176867 | I154: 996.8895801 | J154: 0.01033542446 | K154: 73.51176867 | L154: 749.9220708 | M154: 2.761053937e-06 | N154: 3743.289589 | O154: 3
G155: 13.7 | H155: 73.87577458 | I155: 996.8895801 | J155: 0.01045083056 | K155: 73.87577458 | L155: 752.4003505 | M155: 2.740900259e-06 | N155: 3812.918958 | O155: 3
G156: 13.8 | H156: 74.24158293 | I156: 996.8895801 | J156: 0.01056509175 | K156: 74.24158293 | L156: 754.836779 | M156: 2.721038663e-06 | N156: 3882.742239 | O156: 3
G157: 13.9 | H157: 74.60920264 | I157: 996.8895801 | J157: 0.01067823786 | K157: 74.60920264 | L157: 757.2328401 | M157: 2.701462845e-06 | N157: 3952.761328 | O157: 3
G158: 14 | H158: 74.97864267 | I158: 996.8895801 | J158: 0.01079029736 | K158: 74.97864267 | L158: 759.5899367 | M158: 2.682166682e-06 | N158: 4022.977927 | O158: 3
G159: 14.1 | H159: 75.34991206 | I159: 996.8895801 | J159: 0.01090129741 | K159: 75.34991206 | L159: 761.9093978 | M159: 2.663144223e-06 | N159: 4093.39356 | O159: 3
G160: 14.2 | H160: 75.72301984 | I160: 996.8895801 | J160: 0.01101126401 | K160: 75.72301984 | L160: 764.1924828 | M160: 2.644389686e-06 | N160: 4164.009587 | O160: 3
G161: 14.3 | H161: 76.09797513 | I161: 996.8895801 | J161: 0.01112022199 | K161: 76.09797513 | L161: 766.4403867 | M161: 2.625897451e-06 | N161: 4234.827216 | O161: 3
G162: 14.4 | H162: 76.47478708 | I162: 996.8895801 | J162: 0.01122819516 | K162: 76.47478708 | L162: 768.6542446 | M162: 2.607662052e-06 | N162: 4305.847514 | O162: 3
G163: 14.5 | H163: 76.85346487 | I163: 996.8895801 | J163: 0.01133520632 | K163: 76.85346487 | L163: 770.8351354 | M163: 2.589678176e-06 | N163: 4377.071417 | O163: 3
G164: 14.6 | H164: 77.23401775 | I164: 996.8895801 | J164: 0.01144127734 | K164: 77.23401775 | L164: 772.984086 | M164: 2.571940654e-06 | N164: 4448.499743 | O164: 3
G165: 14.7 | H165: 77.61645501 | I165: 996.8895801 | J165: 0.01154642919 | K165: 77.61645501 | L165: 775.1020741 | M165: 2.554444459e-06 | N165: 4520.133195 | O165: 3
G166: 14.8 | H166: 78.00078596 | I166: 996.8895801 | J166: 0.01165068205 | K166: 78.00078596 | L166: 777.1900316 | M166: 2.537184699e-06 | N166: 4591.972375 | O166: 3
G167: 14.9 | H167: 78.38701999 | I167: 996.8895801 | J167: 0.01175405528 | K167: 78.38701999 | L167: 779.2488477 | M167: 2.520156614e-06 | N167: 4664.017788 | O167: 3
G168: 15 | H168: 78.77516653 | I168: 996.8895801 | J168: 0.01185656751 | K168: 78.77516653 | L168: 781.279371 | M168: 2.50335557e-06 | N168: 4736.269851 | O168: 3
G169: 15.1 | H169: 79.16523504 | I169: 996.8895801 | J169: 0.01195823668 | K169: 79.16523504 | L169: 783.2824126 | M169: 2.486777056e-06 | N169: 4808.728895 | O169: 3
G170: 15.2 | H170: 79.55723504 | I170: 996.8895801 | J170: 0.01205908007 | K170: 79.55723504 | L170: 785.2587477 | M170: 2.470416681e-06 | N170: 4881.395176 | O170: 3
G171: 15.3 | H171: 79.9511761 | I171: 996.8895801 | J171: 0.0121591143 | K171: 79.9511761 | L171: 787.2091182 | M171: 2.454270166e-06 | N171: 4954.268878 | O171: 3
G172: 15.4 | H172: 80.34706782 | I172: 996.8895801 | J172: 0.01225835544 | K172: 80.34706782 | L172: 789.1342343 | M172: 2.438333347e-06 | N172: 5027.350118 | O172: 3
G173: 15.5 | H173: 80.74491986 | I173: 996.8895801 | J173: 0.01235681896 | K173: 80.74491986 | L173: 791.0347765 | M173: 2.422602164e-06 | N173: 5100.63895 | O173: 3
G174: 15.6 | H174: 81.14474194 | I174: 996.8895801 | J174: 0.01245451981 | K174: 81.14474194 | L174: 792.9113973 | M174: 2.407072663e-06 | N174: 5174.135371 | O174: 3
G175: 15.7 | H175: 81.5465438 | I175: 996.8895801 | J175: 0.01255147242 | K175: 81.5465438 | L175: 794.7647226 | M175: 2.39174099e-06 | N175: 5247.839323 | O175: 3
G176: 15.8 | H176: 81.95033525 | I176: 996.8895801 | J176: 0.01264769075 | K176: 81.95033525 | L176: 796.595353 | M176: 2.376603389e-06 | N176: 5321.7507 | O176: 3
G177: 15.9 | H177: 82.35612614 | I177: 996.8895801 | J177: 0.01274318828 | K177: 82.35612614 | L177: 798.4038658 | M177: 2.361656198e-06 | N177: 5395.869345 | O177: 3
G178: 16 | H178: 82.76392638 | I178: 996.8895801 | J178: 0.01283797807 | K178: 82.76392638 | L178: 800.1908154 | M178: 2.346895847e-06 | N178: 5470.19506 | O178: 3
G179: 16.1 | H179: 83.17374591 | I179: 996.8895801 | J179: 0.01293207273 | K179: 83.17374591 | L179: 801.9567351 | M179: 2.332318854e-06 | N179: 5544.727605 | O179: 3
G180: 16.2 | H180: 83.58559472 | I180: 996.8895801 | J180: 0.01302548451 | K180: 83.58559472 | L180: 803.7021379 | M180: 2.317921824e-06 | N180: 5619.466704 | O180: 3
G181: 16.3 | H181: 83.99948288 | I181: 996.8895801 | J181: 0.01311822525 | K181: 83.99948288 | L181: 805.4275178 | M181: 2.303701445e-06 | N181: 5694.412042 | O181: 3
G182: 16.4 | H182: 84.41542047 | I182: 996.8895801 | J182: 0.01321030642 | K182: 84.41542047 | L182: 807.1333504 | M182: 2.289654485e-06 | N182: 5769.563273 | O182: 3
G183: 16.5 | H183: 84.83341765 | I183: 996.8895801 | J183: 0.01330173917 | K183: 84.83341765 | L183: 808.8200939 | M183: 2.275777791e-06 | N183: 5844.920019 | O183: 3
G184: 16.6 | H184: 85.25348461 | I184: 996.8895801 | J184: 0.01339253429 | K184: 85.25348461 | L184: 810.4881903 | M184: 2.262068286e-06 | N184: 5920.481875 | O184: 3
G185: 16.7 | H185: 85.6756316 | I185: 996.8895801 | J185: 0.01348270226 | K185: 85.6756316 | L185: 812.1380657 | M185: 2.248522967e-06 | N185: 5996.248407 | O185: 3
G186: 16.8 | H186: 86.09986893 | I186: 996.8895801 | J186: 0.01357225325 | K186: 86.09986893 | L186: 813.7701314 | M186: 2.235138902e-06 | N186: 6072.219155 | O186: 3
G187: 16.9 | H187: 86.52620694 | I187: 996.8895801 | J187: 0.01366119716 | K187: 86.52620694 | L187: 815.3847845 | M187: 2.221913228e-06 | N187: 6148.393639 | O187: 3
G188: 17 | H188: 86.95465603 | I188: 996.8895801 | J188: 0.01374954357 | K188: 86.95465603 | L188: 816.9824083 | M188: 2.20884315e-06 | N188: 6224.771355 | O188: 3
G189: 17.1 | H189: 87.38522666 | I189: 996.8895801 | J189: 0.01383730181 | K189: 87.38522666 | L189: 818.5633734 | M189: 2.195925938e-06 | N189: 6301.351777 | O189: 3
G190: 17.2 | H190: 87.81792934 | I190: 996.8895801 | J190: 0.01392448097 | K190: 87.81792934 | L190: 820.128038 | M190: 2.183158927e-06 | N190: 6378.134363 | O190: 3
G191: 17.3 | H191: 88.25277461 | I191: 996.8895801 | J191: 0.01401108987 | K191: 88.25277461 | L191: 821.6767484 | M191: 2.170539511e-06 | N191: 6455.118552 | O191: 3
G192: 17.4 | H192: 88.68977309 | I192: 996.8895801 | J192: 0.01409713708 | K192: 88.68977309 | L192: 823.2098396 | M192: 2.158065146e-06 | N192: 6532.303767 | O192: 3
G193: 17.5 | H193: 89.12893545 | I193: 996.8895801 | J193: 0.01418263098 | K193: 89.12893545 | L193: 824.7276361 | M193: 2.145733346e-06 | N193: 6609.689414 | O193: 3
G194: 17.6 | H194: 89.57027239 | I194: 996.8895801 | J194: 0.01426757969 | K194: 89.57027239 | L194: 826.2304517 | M194: 2.133541679e-06 | N194: 6687.274886 | O194: 3
G195: 17.7 | H195: 90.01379468 | I195: 996.8895801 | J195: 0.01435199113 | K195: 90.01379468 | L195: 827.7185906 | M195: 2.121487771e-06 | N195: 6765.059564 | O195: 3
G196: 17.8 | H196: 90.45951316 | I196: 996.8895801 | J196: 0.01443587304 | K196: 90.45951316 | L196: 829.1923473 | M196: 2.1095693e-06 | N196: 6843.042814 | O196: 3
G197: 17.9 | H197: 90.90743868 | I197: 996.8895801 | J197: 0.01451923293 | K197: 90.90743868 | L197: 830.6520076 | M197: 2.097783997e-06 | N197: 6921.223994 | O197: 3
G198: 18 | H198: 91.35758218 | I198: 996.8895801 | J198: 0.01460207814 | K198: 91.35758218 | L198: 832.0978482 | M198: 2.086129641e-06 | N198: 6999.602448 | O198: 3
G199: 18.1 | H199: 91.80995464 | I199: 996.8895801 | J199: 0.01468441583 | K199: 91.80995464 | L199: 833.5301377 | M199: 2.074604063e-06 | N199: 7078.177512 | O199: 3
G200: 18.2 | H200: 92.2645671 | I200: 996.8895801 | J200: 0.01476625296 | K200: 92.2645671 | L200: 834.9491366 | M200: 2.06320514e-06 | N200: 7156.948514 | O200: 3
G201: 18.3 | H201: 92.72143065 | I201: 996.8895801 | J201: 0.01484759635 | K201: 92.72143065 | L201: 836.3550979 | M201: 2.051930795e-06 | N201: 7235.914771 | O201: 3
... 18 more rows

Sheet Database
B1: Property database
I2: Source: Properties of Gases and Liquids, 4th Ed. R. C. Reid, J. M. Prausnitz, and B. E. Poling, McGraw-Hill, New York, 1987. AND from Properties of Gases and Liquids, 3rd Ed., R. C. Reid, J. M. Prausnitz, and T. K. Sherwood, McGraw-Hill, New York, 1977.
A3: Solvents | B3: MW | C3: Tc [K] | D3: Pc [MPa] | E3: w | F3: Vc [cm3/mol] | H3: Tb [K] | I3: Notes
A4: Carbon Dioxide | B4: 44.01 | C4: 304.1 | D4: 7.38 | E4: 0.225 | F4: 94 | G4: CO2 | H4: 194.7
A5: Ethane | B5: 30.07 | C5: 305.4 | D5: 4.88 | E5: 0.098 | F5: 148 | G5: C2H6 | H5: 184.5
A6: Propane | B6: 44.094 | C6: 369.8 | D6: 4.25 | E6: 0.153 | F6: 203 | G6: C3H8 | H6: 231.1
A7: Water | B7: 18.015 | C7: 647.3 | D7: 22.12 | E7: 0.344 | F7: 57.1 | G7: H2O | H7: 373.2
A8: Toluene | B8: 92.141 | C8: 591.7 | D8: 4.11278 | E8: 0.257 | F8: 316 | G8: C7H8 | H8: 383.8
A9: m-Xylene | B9: 106.168 | C9: 617 | D9: 3.5455 | E9: 0.331 | F9: 376 | G9: C8H10 | H9: 412.3
A10: Ammonia | B10: 17.031 | C10: 405.6 | D10: 11.27469 | E10: 0.25 | F10: 72.5 | G10: NH3 | H10: 239.7
A13: Common co-solvents
A14: Methanol | B14: 32.042 | C14: 512.6 | D14: 8.09 | E14: 0.556 | F14: 118 | G14: CH4O | H14: 337.8
A15: Acetone | B15: 58.08 | C15: 508.1 | D15: 4.7 | E15: 0.304 | F15: 209 | G15: C3H6O | H15: 329.4
A16: Dimethyl ether | B16: 46.069 | C16: 400 | D16: 5.24 | E16: 0.192 | F16: 178 | G16: C2H6O | H16: 248.3
A17: Ethanol | B17: 46.069 | C17: 516.2 | D17: 6.14 | E17: 0.635 | F17: 167 | G17: C2H6O | H17: 351.5
A18: Isopropyl alcohol | B18: 60.096 | C18: 508.3 | D18: 4.76 | E18: 0.665 | F18: 220 | G18: C3H8O | H18: 355.4
A20: Solutes | B20: MW | C20: Tc [K] | D20: Pc [MPa] | E20: w | F20: Vc [cm3/mol] | H20: Tb [K]
A21: Methane | B21: 16.043 | C21: 190.6 | D21: 4.59902 | E21: 0.008 | F21: 99 | G21: CH4 | H21: 111.7
A22: Benzene | B22: 78.114 | C22: 562.2 | D22: 4.89 | E22: 0.212 | F22: 259 | G22: C6H6 | H22: 353.3
A23: n-Hexane | B23: 86.178 | C23: 507.5 | D23: 3.01 | E23: 0.299 | F23: 370 | G23: C6H14 | H23: 341.9
A24: Naphthalene | B24: 128.174 | C24: 748.4 | D24: 4.05 | E24: 0.302 | F24: 410 | G24: C10H8 | H24: 491.1
A25: n-Octane | B25: 114.232 | C25: 568.8 | D25: 2.49 | E25: 0.398 | F25: 492 | G25: C8H18 | H25: 398.8
A26: n-Hexadecane | B26: 224.432 | C26: 717 | D26: 1.42 | E26: 0.742 | F26: 931.5 | G26: C16H34 | H26: 560 | I26: Vc estimated with Joback Method
A27: isoprene (1,3-butadiene, 2-methyl) | B27: 68.119 | C27: 484 | D27: 3.85 | E27: 0.164 | F27: 276 | G27: C5H8 | H27: 307.2 | I27: Properties from Reid et al. (1977)
A28: Maleic Anhydride | B28: 98.0582 | C28: 719.4 | D28: 5.99 | E28: 0.443 | F28: 225.5 | G28: C4H2O3 | H28: 472.8
A29: 4-methyl-4-cyclohexene-1,2-dicarboxylic anhydride | B29: 166.1772 | C29: 849.1 | D29: 3.61 | E29: 0.588 | F29: 450.5 | G29: C9H10O3 | H29: 598.3
A30: Ethyl Vinyl Ether | B30: 72.10572 | C30: 475.1 | D30: 4.02 | E30: 0.265 | F30: 258.5 | G30: C4H8O | H30: 308.8
A31: Biphenyl | B31: 154.211 | C31: 773 | D31: 3.38 | E31: 0.404 | F31: 497 | G31: C12H10 | H31: 528.23
A32: Others | B32: MW | C32: Tc [K] | D32: Pc [MPa] | E32: w | F32: Vc [cm3/mol] | H32: Tb [K]
A33: Hydrogen | B33: 2.016 | C33: 33.2 | D33: 1.29664 | E33: -0.22 | F33: 65 | G33: H2 | H33: 20.4
A34: Hydrogen - Effective Critical Constants | B34: 2.016 | C34: 43.6 | D34: 2.05 | E34: 0 | F34: 51.5 | G34: H2 | H34: 20.4
A35: Nitrogen | B35: 28.013 | C35: 126.2 | D35: 3.39355 | E35: 0.04 | F35: 89.5 | G35: N2 | H35: 77.4
A36: Oxygen | B36: 31.999 | C36: 154.6 | D36: 5.04474 | E36: 0.021 | F36: 73.4 | G36: O2 | H36: 90.2
A37: Carbon Monoxide | B37: 28.01 | C37: 132.9 | D37: 3.49485 | E37: 0.295 | F37: 93.1 | G37: CO | H37: 81.7
